[Event "Chinese Championship-B Men 2024"]
[Site "Liaocheng"]
[Date "2024.04.24"]
[Round "2.12"]
[White "Wang, Hao B"]
[Black "Feng, Yusheng"]
[Result "1-0"]
[WhiteElo "2170"]
[BlackElo "1763"]
[PlyCount "63"]
[EventDate "2024.04.24"]
[EventType "swiss"]
[EventCountry "CHN"]
[TimeControl "5400+30"]

1. d4 {[%emt 0:00:02]} Nf6 {[%emt 0:00:07]} 2. c4 {[%emt 0:00:17]} e6 {[%emt 0:00:04]} 3. Nf3 {[%emt 0:00:17]} b6 {[%emt 0:00:09]} 4. a3 {[%emt 0:01:28]} Bb7 {[%emt 0:00:54]} 5. Nc3 {[%emt 0:00:20]} Be7 {[%emt 0:01:12]} 6. Qc2 {[%emt 0:01:50]} d5 {[%emt 0:01:13]} 7. cxd5 {[%emt 0:02:29]} exd5 {[%emt 0:01:34]} 8. Bf4 {[%emt 0:00:23]} a6 {[%emt 0:02:46]} 9. e3 {[%emt 0:00:36]} Nbd7 {[%emt 0:01:02]} 10. Bd3 {[%emt 0:00:56]} O-O {[%emt 0:01:46]} 11. g4 {[%emt 0:11:48]} g6 {[%emt 0:03:00]} 12. Rg1 {[%emt 0:05:01]} c5 {[%emt 0:04:46]} 13. h4 {[%emt 0:02:41]} c4 {[%emt 0:04:52]} 14. Be2 {[%emt 0:02:21]} Re8 {[%emt 0:05:03]} 15. h5 {[%emt 0:01:05]} Bf8 {[%emt 0:01:36]} 16. hxg6 {[%emt 0:03:48]} hxg6 {[%emt 0:01:55]} 17. O-O-O {[%emt 0:03:38]} b5 {[%emt 0:01:47]} 18. Ne5 {[%emt 0:01:09]} Bg7 {[%emt 0:05:48]} 19. Bf3 {[%emt 0:00:51]} Nf8 {[%emt 0:03:05]} 20. Rh1 {[%emt 0:03:05]} Rc8 {[%emt 0:13:57]} 21. Bh6 {[%emt 0:02:00]} Qd6 {[%emt 0:02:18]} 22. Bxg7 {[%emt 0:03:12]} Kxg7 {[%emt 0:00:14]} 23. g5 {[%emt 0:01:49]} N6h7 {[%emt 0:02:07]} 24. Bg4 {[%emt 0:00:11]} Rb8 {[%emt 0:02:10]} 25. f4 {[%emt 0:00:17]} Bc8 {[%emt 0:04:39]} 26. Bxc8 {[%emt 0:00:20]} Rbxc8 {[%emt 0:05:06]} 27. Rh6 {[%emt 0:00:20]} f5 {[%emt 0:03:20]} 28. Rdh1 {[%emt 0:00:50]} Kg8 {[%emt 0:03:03]} 29. Qxf5 {[%emt 0:00:56]} gxf5 {[%emt 0:03:07]} 30. Rxd6 {[%emt 0:00:06]} Rb8 {[%emt 0:01:37]} 31. g6 {[%emt 0:00:25]} Rb7 {[%emt 0:03:16]} 32. Nxd5 {[%emt 0:00:21]} 1-0

[Event "Chinese Championship-B Men 2024"]
[Site "Liaocheng"]
[Date "2024.04.24"]
[Round "2.13"]
[White "Xie, Jiaxiang"]
[Black "Hou, Yifan b"]
[Result "0-1"]
[WhiteElo "1757"]
[BlackElo "2161"]
[PlyCount "72"]
[EventDate "2024.04.24"]
[EventType "swiss"]
[EventCountry "CHN"]
[TimeControl "5400+30"]

1. e4 {[%emt 0:00:14]} c5 {[%emt 0:01:09]} 2. Nf3 {[%emt 0:00:08]} Nc6 {[%emt 0:00:38]} 3. c3 {[%emt 0:01:17]} Nf6 {[%emt 0:01:07]} 4. e5 {[%emt 0:00:07]} Nd5 {[%emt 0:00:05]} 5. d4 {[%emt 0:00:05]} cxd4 {[%emt 0:00:16]} 6. cxd4 {[%emt 0:00:05]} d6 {[%emt 0:00:11]} 7. Bc4 {[%emt 0:00:09]} dxe5 {[%emt 0:02:58]} 8. dxe5 {[%emt 0:01:49]} Be6 {[%emt 0:02:24]} 9. Na3 {[%emt 0:00:59]} a6 {[%emt 0:07:39]} 10. O-O {[%emt 0:01:11]} g6 {[%emt 0:01:35]} 11. Qe2 {[%emt 0:03:36]} Bg7 {[%emt 0:02:00]} 12. Rd1 {[%emt 0:03:28]} O-O {[%emt 0:05:54]} 13. Nc2 {[%emt 0:09:22]} Nc3 {[%emt 0:07:59]} 14. bxc3 {[%emt 0:03:44]} Bxc4 {[%emt 0:00:05]} 15. Qe1 {[%emt 0:00:10]} Qa5 {[%emt 0:06:06]} 16. Bf4 {[%emt 0:07:48]} Rfd8 {[%emt 0:03:02]} 17. Ne3 {[%emt 0:06:14]} Be6 {[%emt 0:03:36]} 18. Ng5 {[%emt 0:10:21]} Qa4 {[%emt 0:06:42]} 19. Nxe6 {[%emt 0:05:39]} fxe6 {[%emt 0:00:05]} 20. Bg3 {[%emt 0:00:36]} Nxe5 {[%emt 0:06:03]} 21. Nf1 {[%emt 0:05:46]} Rxd1 {[%emt 0:02:42]} 22. Rxd1 {[%emt 0:00:21]} Nf7 {[%emt 0:00:17]} 23. Ne3 {[%emt 0:08:20]} b5 {[%emt 0:05:29]} 24. Qe2 {[%emt 0:01:38]} Rc8 {[%emt 0:01:02]} 25. Qf3 {[%emt 0:01:15]} Bf6 {[%emt 0:03:49]} 26. h4 {[%emt 0:02:32]} Rxc3 {[%emt 0:08:13]} 27. h5 {[%emt 0:00:19]} Qxa2 {[%emt 0:02:37]} 28. Qa8+ {[%emt 0:03:17]} Kg7 {[%emt 0:00:11]} 29. h6+ {[%emt 0:00:05]} Nxh6 {[%emt 0:00:37]} 30. Rd8 {[%emt 0:00:08]} Qb1+ {[%emt 0:00:51]} 31. Kh2 {[%emt 0:01:21]} Rxe3 {[%emt 0:00:50]} 32. fxe3 {[%emt 0:04:00]} Ng4+ {[%emt 0:00:08]} 33. Kh3 {[%emt 0:00:05]} Qh1+ {[%emt 0:00:06]} 34. Bh2 {[%emt 0:00:06]} Qxh2+ {[%emt 0:00:12]} 35. Kxg4 {[%emt 0:00:06]} Qh5+ {[%emt 0:00:05]} 36. Kg3 {[%emt 0:00:21]} Bh4+ {[%emt 0:00:07]} 0-1

[Event "Chinese Championship-B Men 2024"]
[Site "Liaocheng"]
[Date "2024.04.24"]
[Round "2.14"]
[White "Zhu, Yilun"]
[Black "Hong, Mingren"]
[Result "1/2-1/2"]
[WhiteElo "2125"]
[BlackElo "1747"]
[PlyCount "103"]
[EventDate "2024.04.24"]
[EventType "swiss"]
[EventCountry "CHN"]
[TimeControl "5400+30"]

1. Nf3 {[%emt 0:00:03]} Nf6 {[%emt 0:00:06]} 2. c4 {[%emt 0:00:03]} g6 {[%emt 0:00:05]} 3. Nc3 {[%emt 0:00:03]} d6 {[%emt 0:00:10]} 4. d4 {[%emt 0:00:22]} Bg7 {[%emt 0:00:06]} 5. e4 {[%emt 0:00:47]} O-O {[%emt 0:00:06]} 6. h3 {[%emt 0:00:55]} e5 {[%emt 0:00:40]} 7. dxe5 {[%emt 0:03:01]} dxe5 {[%emt 0:00:09]} 8. Qxd8 {[%emt 0:00:03]} Rxd8 {[%emt 0:00:05]} 9. Bg5 {[%emt 0:00:12]} Re8 {[%emt 0:00:11]} 10. O-O-O {[%emt 0:01:58]} h6 {[%emt 0:05:47]} 11. Be3 {[%emt 0:03:03]} c6 {[%emt 0:01:53]} 12. Be2 {[%emt 0:01:53]} Kh7 {[%emt 0:01:56]} 13. g4 {[%emt 0:01:27]} Nbd7 {[%emt 0:04:06]} 14. Nd2 {[%emt 0:03:27]} Nf8 {[%emt 0:00:43]} 15. c5 {[%emt 0:01:09]} Be6 {[%emt 0:00:51]} 16. Rhg1 {[%emt 0:03:40]} g5 {[%emt 0:09:07]} 17. h4 {[%emt 0:06:41]} gxh4 {[%emt 1:12:59]} 18. g5 {[%emt 0:00:09]} hxg5 {[%emt 0:00:00]} 19. Nf3 {[%emt 0:01:33]} Kh8 {[%emt 0:00:00]} 20. Nxg5 {[%emt 0:00:35]} N6h7 {[%emt 0:00:00]} 21. Nxe6 {[%emt 0:02:09]} Nxe6 {[%emt 0:00:00]} 22. Rd7 {[%emt 0:00:10]} Nd8 {[%emt 0:00:00]} 23. Bc4 {[%emt 0:03:07]} Nf8 {[%emt 0:00:00]} 24. Bxf7 {[%emt 0:01:12]} Nxd7 {[%emt 0:00:00]} 25. Bxe8 {[%emt 0:00:05]} Nxc5 {[%emt 0:00:00]} 26. Bg6 {[%emt 1:05:43]} Nde6 {[%emt 0:00:00]} 27. Ne2 {[%emt 0:00:00]} Bf6 {[%emt 0:00:00]} 28. Bf5 {[%emt 0:00:00]} Rg8 {[%emt 0:00:00]} 29. Rh1 {[%emt 0:00:00]} Nd4 {[%emt 0:00:00]} 30. Nxd4 {[%emt 0:00:00]} exd4 {[%emt 0:00:00]} 31. e5 {[%emt 0:00:00]} Bxe5 {[%emt 0:07:00]} 32. Rxh4+ {[%emt 0:00:00]} Kg7 {[%emt 0:00:00]} 33. Bg5 {[%emt 0:00:00]} Rh8 {[%emt 0:00:00]} 34. Rg4 {[%emt 0:00:00]} Kf7 {[%emt 0:00:00]} 35. b4 {[%emt 0:00:00]} Rh1+ {[%emt 0:00:00]} 36. Kd2 {[%emt 0:00:00]} Ne6 {[%emt 0:00:00]} 37. Bh4 {[%emt 0:00:00]} Bf6 {[%emt 0:00:00]} 38. Bxe6+ {[%emt 0:01:20]} Kxe6 {[%emt 0:00:00]} 39. Bxf6 {[%emt 0:00:02]} Kxf6 {[%emt 0:00:00]} 40. Rxd4 {[%emt 0:00:02]} Ra1 {[%emt 0:00:00]} 41. Rd7 {[%emt 0:00:04]} Rxa2+ {[%emt 0:00:00]} 42. Kc3 {[%emt 0:00:58]} b6 {[%emt 0:00:00]} 43. Rd6+ {[%emt 0:00:02]} Ke5 {[%emt 0:00:00]} 44. Rxc6 {[%emt 0:00:02]} Rxf2 {[%emt 0:00:00]} 45. Rc7 {[%emt 0:00:12]} Ra2 {[%emt 0:00:00]} 46. Kb3 {[%emt 0:00:04]} Ra1 {[%emt 0:00:00]} 47. Kb2 {[%emt 0:00:04]} Kd6 {[%emt 0:00:00]} 48. Rh7 {[%emt 0:00:14]} Ra6 {[%emt 0:00:00]} 49. Kb3 {[%emt 0:00:04]} Ra1 {[%emt 0:00:00]} 50. Kb2 {[%emt 0:00:02]} Ra4 {[%emt 0:00:00]} 51. Kb3 {[%emt 0:00:04]} Ra1 {[%emt 0:00:00]} 52. Kb2 {[%emt 0:00:06]} 1/2-1/2

[Event "Chinese Championship-B Men 2024"]
[Site "Liaocheng"]
[Date "2024.04.24"]
[Round "2.15"]
[White "Ren, Yibai"]
[Black "Chen, Zimu(Js)"]
[Result "0-1"]
[WhiteElo "1755"]
[BlackElo "2075"]
[PlyCount "80"]
[EventDate "2024.04.24"]
[EventType "swiss"]
[EventCountry "CHN"]
[TimeControl "5400+30"]

1. e4 {[%emt 0:00:10]} c5 {[%emt 0:00:39]} 2. Nf3 {[%emt 0:00:45]} d6 {[%emt 0:00:05]} 3. d4 {[%emt 0:00:10]} cxd4 {[%emt 0:00:05]} 4. Nxd4 {[%emt 0:00:15]} Nf6 {[%emt 0:00:05]} 5. Nc3 {[%emt 0:00:13]} Nc6 {[%emt 0:00:05]} 6. Bg5 {[%emt 0:01:00]} e6 {[%emt 0:00:05]} 7. Qd2 {[%emt 0:00:09]} a6 {[%emt 0:00:04]} 8. O-O-O {[%emt 0:00:10]} Bd7 {[%emt 0:00:06]} 9. f3 {[%emt 0:00:19]} b5 {[%emt 0:03:50]} 10. Nxc6 {[%emt 0:01:31]} Bxc6 {[%emt 0:00:04]} 11. Kb1 {[%emt 0:00:07]} h6 {[%emt 0:06:59]} 12. Be3 {[%emt 0:01:43]} Be7 {[%emt 0:01:34]} 13. g4 {[%emt 0:00:57]} d5 {[%emt 0:08:09]} 14. exd5 {[%emt 0:05:22]} Nxd5 {[%emt 0:00:05]} 15. Nxd5 {[%emt 0:00:19]} Bxd5 {[%emt 0:00:50]} 16. Bg2 {[%emt 0:01:11]} Qc7 {[%emt 0:05:50]} 17. f4 {[%emt 0:02:07]} Rd8 {[%emt 0:00:48]} 18. Bxd5 {[%emt 0:01:29]} Rxd5 {[%emt 0:00:06]} 19. Qe2 {[%emt 0:01:33]} Rxd1+ {[%emt 0:00:25]} 20. Rxd1 {[%emt 0:00:08]} O-O {[%emt 0:00:23]} 21. f5 {[%emt 0:03:13]} exf5 {[%emt 0:05:12]} 22. gxf5 {[%emt 0:00:49]} Bf6 {[%emt 0:00:05]} 23. Bd4 {[%emt 0:01:20]} Bxd4 {[%emt 0:00:38]} 24. Rxd4 {[%emt 0:00:02]} Qc6 {[%emt 0:00:06]} 25. a3 {[%emt 0:03:57]} Re8 {[%emt 0:00:20]} 26. Qd2 {[%emt 0:00:34]} Qf6 {[%emt 0:07:41]} 27. Qd3 {[%emt 0:04:23]} Qe5 {[%emt 0:03:58]} 28. h4 {[%emt 0:02:38]} Kh7 {[%emt 0:09:44]} 29. Rd7 {[%emt 0:05:46]} f6 {[%emt 0:04:47]} 30. h5 {[%emt 0:03:05]} Qh2 {[%emt 0:07:32]} 31. Qd1 {[%emt 0:08:54]} Re2 {[%emt 0:09:05]} 32. Ra7 {[%emt 0:23:50]} Rg2 {[%emt 0:00:09]} 33. Qd4 {[%emt 0:07:09]} Qxh5 {[%emt 0:00:47]} 34. Qd5 {[%emt 0:08:24]} Rf2 {[%emt 0:07:06]} 35. Ra8 {[%emt 0:01:59]} Qxf5 {[%emt 0:00:13]} 36. Qg8+ {[%emt 0:00:13]} Kg6 {[%emt 0:00:05]} 37. Rc8 {[%emt 0:00:26]} Qd7 {[%emt 0:01:08]} 38. b3 {[%emt 0:00:55]} Rf1+ {[%emt 0:01:09]} 39. Ka2 {[%emt 0:00:18]} Qd4 {[%emt 0:00:38]} 40. Qe8+ {[%emt 0:00:25]} Kg5 {[%emt 0:00:04]} 0-1

[Event "Chinese Championship-B Men 2024"]
[Site "Liaocheng"]
[Date "2024.04.24"]
[Round "3.1"]
[White "Meng, Yihan"]
[Black "Jin, Yueheng"]
[Result "1-0"]
[WhiteElo "2042"]
[BlackElo "2407"]
[PlyCount "141"]
[EventDate "2024.04.24"]
[EventType "swiss"]
[EventCountry "CHN"]
[TimeControl "5400+30"]

1. e4 {[%emt 0:00:03]} c5 {[%emt 0:00:44]} 2. Nf3 {[%emt 0:00:06]} e6 {[%emt 0:00:03]} 3. g3 {[%emt 0:00:23]} d5 {[%emt 0:00:11]} 4. d3 {[%emt 0:00:12]} dxe4 {[%emt 0:01:33]} 5. dxe4 {[%emt 0:00:09]} Qxd1+ {[%emt 0:00:03]} 6. Kxd1 {[%emt 0:00:06]} Nc6 {[%emt 0:03:30]} 7. Nbd2 {[%emt 0:00:57]} Nf6 {[%emt 0:03:00]} 8. Bb5 {[%emt 0:01:10]} Bd7 {[%emt 0:00:46]} 9. a4 {[%emt 0:00:33]} Ng4 {[%emt 0:12:18]} 10. Ke2 {[%emt 0:01:30]} Bd6 {[%emt 0:05:54]} 11. h3 {[%emt 0:18:09]} Nge5 {[%emt 0:00:11]} 12. Nxe5 {[%emt 0:00:19]} Bxe5 {[%emt 0:11:36]} 13. c3 {[%emt 0:00:59]} Bc7 {[%emt 0:00:43]} 14. f4 {[%emt 0:17:46]} a6 {[%emt 0:09:51]} 15. Bd3 {[%emt 0:00:35]} e5 {[%emt 0:06:38]} 16. Nb3 {[%emt 0:09:52]} b6 {[%emt 0:03:16]} 17. f5 {[%emt 0:00:39]} Ke7 {[%emt 0:04:41]} 18. Be3 {[%emt 0:01:26]} Bd6 {[%emt 0:06:47]} 19. Rhd1 {[%emt 0:19:00]} f6 {[%emt 0:07:51]} 20. Bc4 {[%emt 0:02:53]} Rhd8 {[%emt 0:02:51]} 21. Bd5 {[%emt 0:05:22]} Rab8 {[%emt 0:03:02]} 22. g4 {[%emt 0:00:59]} h6 {[%emt 0:05:27]} 23. Rd2 {[%emt 0:01:27]} a5 {[%emt 0:02:11]} 24. Kf3 {[%emt 0:02:18]} Kf8 {[%emt 0:01:51]} 25. h4 {[%emt 0:03:47]} Ne7 {[%emt 0:00:04]} 26. Bc4 {[%emt 0:03:54]} Bc6 {[%emt 0:00:05]} 27. Be6 {[%emt 0:00:27]} c4 {[%emt 0:02:21]} 28. Bxc4 {[%emt 0:00:25]} h5 {[%emt 0:00:01]} 29. Bd3 {[%emt 0:07:28]} Bc7 {[%emt 0:00:07]} 30. Bc2 {[%emt 0:00:10]} hxg4+ {[%emt 0:01:00]} 31. Kxg4 {[%emt 0:00:07]} Rxd2 {[%emt 0:01:33]} 32. Bxd2 {[%emt 0:01:27]} Nc8 {[%emt 0:00:21]} 33. Be3 {[%emt 0:00:37]} Nd6 {[%emt 0:00:01]} 34. Nd2 {[%emt 0:00:05]} Ke7 {[%emt 0:01:13]} 35. b4 {[%emt 0:00:30]} axb4 {[%emt 0:00:52]} 36. cxb4 {[%emt 0:00:02]} Ra8 {[%emt 0:00:04]} 37. h5 {[%emt 0:01:20]} Nc8 {[%emt 0:00:37]} 38. Nc4 {[%emt 0:01:43]} b5 {[%emt 0:01:32]} 39. axb5 {[%emt 0:00:31]} Rxa1 {[%emt 0:00:04]} 40. bxc6 {[%emt 0:00:03]} Ra2 {[%emt 0:01:22]} 41. Bb3 {[%emt 0:00:16]} Ra1 {[%emt 0:00:02]} 42. Bc2 {[%emt 0:00:36]} Ra2 {[%emt 0:00:03]} 43. Bb3 {[%emt 0:00:02]} Ra1 {[%emt 0:00:03]} 44. Bc5+ {[%emt 0:00:41]} Ke8 {[%emt 0:00:25]} 45. Ne3 {[%emt 0:00:08]} Bb6 {[%emt 0:01:03]} 46. Be6 {[%emt 0:00:34]} Bxc5 {[%emt 0:02:41]} 47. bxc5 {[%emt 0:00:01]} Na7 {[%emt 0:02:03]} 48. c7 {[%emt 0:00:19]} Ra6 {[%emt 0:01:06]} 49. c8=Q+ {[%emt 0:01:41]} Nxc8 {[%emt 0:00:01]} 50. Bxc8 {[%emt 0:00:01]} Rc6 {[%emt 0:00:01]} 51. Be6 {[%emt 0:00:09]} Rxc5 {[%emt 0:00:03]} 52. h6 {[%emt 0:01:02]} gxh6 {[%emt 0:00:01]} 53. Nd5 {[%emt 0:00:12]} Rc1 {[%emt 0:02:11]} 54. Nxf6+ {[%emt 0:00:07]} Ke7 {[%emt 0:00:05]} 55. Ng8+ {[%emt 0:00:49]} Kf8 {[%emt 0:00:22]} 56. Nxh6 {[%emt 0:00:21]} Kg7 {[%emt 0:00:02]} 57. Kg5 {[%emt 0:00:11]} Re1 {[%emt 0:01:33]} 58. f6+ {[%emt 0:00:20]} Kh7 {[%emt 0:00:46]} 59. Bf5+ {[%emt 0:00:26]} Kh8 {[%emt 0:00:01]} 60. Nf7+ {[%emt 0:00:25]} Kg8 {[%emt 0:00:01]} 61. Nxe5 {[%emt 0:00:29]} Rg1+ {[%emt 0:00:04]} 62. Ng4 {[%emt 0:00:11]} Kf7 {[%emt 0:00:12]} 63. e5 {[%emt 0:00:07]} Re1 {[%emt 0:00:05]} 64. e6+ {[%emt 0:00:11]} Kf8 {[%emt 0:00:05]} 65. Kf4 {[%emt 0:01:16]} Rf1+ {[%emt 0:00:12]} 66. Ke5 {[%emt 0:00:51]} Re1+ {[%emt 0:00:14]} 67. Be4 {[%emt 0:00:05]} Ke8 {[%emt 0:00:19]} 68. Nh6 {[%emt 0:00:09]} Kf8 {[%emt 0:00:29]} 69. Nf5 {[%emt 0:00:05]} Rd1 {[%emt 0:00:57]} 70. e7+ {[%emt 0:00:08]} Kf7 {[%emt 0:00:03]} 71. Nd6+ {[%emt 0:00:10]} 1-0

[Event "Chinese Championship-B Men 2024"]
[Site "Liaocheng"]
[Date "2024.04.24"]
[Round "3.2"]
[White "Xie, Kaifan"]
[Black "Chan, Wang Ip Boris"]
[Result "1-0"]
[WhiteElo "2393"]
[BlackElo "2011"]
[PlyCount "63"]
[EventDate "2024.04.24"]
[EventType "swiss"]
[EventCountry "CHN"]
[TimeControl "5400+30"]

1. d4 {[%emt 0:00:03]} Nf6 {[%emt 0:00:17]} 2. c4 {[%emt 0:00:44]} e6 {[%emt 0:00:13]} 3. Nf3 {[%emt 0:00:13]} b6 {[%emt 0:00:18]} 4. g3 {[%emt 0:00:15]} Bb7 {[%emt 0:00:04]} 5. Bg2 {[%emt 0:00:31]} Be7 {[%emt 0:00:08]} 6. O-O {[%emt 0:00:11]} O-O {[%emt 0:00:16]} 7. Re1 {[%emt 0:00:18]} Qc8 {[%emt 0:01:59]} 8. Nc3 {[%emt 0:02:17]} Ne4 {[%emt 0:02:09]} 9. Bd2 {[%emt 0:00:11]} d6 {[%emt 0:06:46]} 10. d5 {[%emt 0:00:58]} Nxc3 {[%emt 0:03:15]} 11. Bxc3 {[%emt 0:00:09]} e5 {[%emt 0:01:14]} 12. e4 {[%emt 0:07:07]} Qe8 {[%emt 0:18:24]} 13. b4 {[%emt 0:19:33]} Nd7 {[%emt 0:10:39]} 14. Nd2 {[%emt 0:04:58]} a6 {[%emt 0:11:25]} 15. Bh3 {[%emt 0:10:54]} Bg5 {[%emt 0:13:36]} 16. Nb3 {[%emt 0:08:41]} Bc8 {[%emt 0:02:28]} 17. a4 {[%emt 0:07:22]} Rb8 {[%emt 0:08:09]} 18. Rb1 {[%emt 0:08:43]} Nf6 {[%emt 0:05:23]} 19. Bf1 {[%emt 0:03:22]} c6 {[%emt 0:05:29]} 20. a5 {[%emt 0:06:54]} b5 {[%emt 0:01:08]} 21. c5 {[%emt 0:02:13]} cxd5 {[%emt 0:02:00]} 22. exd5 {[%emt 0:00:01]} Bf5 {[%emt 0:01:28]} 23. Rb2 {[%emt 0:02:54]} Be4 {[%emt 0:02:18]} 24. cxd6 {[%emt 0:00:24]} Nxd5 {[%emt 0:00:22]} 25. Bd2 {[%emt 0:00:02]} Bxd2 {[%emt 0:00:41]} 26. Rxd2 {[%emt 0:00:04]} Nf6 {[%emt 0:01:05]} 27. Nc5 {[%emt 0:00:27]} Qc6 {[%emt 0:00:35]} 28. d7 {[%emt 0:01:57]} Bf3 {[%emt 0:00:31]} 29. Rd6 {[%emt 0:00:26]} Qa8 {[%emt 0:01:56]} 30. Qd2 {[%emt 0:00:20]} Ne4 {[%emt 0:00:21]} 31. Nxe4 {[%emt 0:00:18]} Bxe4 {[%emt 0:00:13]} 32. Rxe4 {[%emt 0:00:08]} 1-0

[Event "Chinese Championship-B Men 2024"]
[Site "Liaocheng"]
[Date "2024.04.24"]
[Round "3.3"]
[White "Liu, Aiwei"]
[Black "Zhang, Ziji"]
[Result "0-1"]
[WhiteElo "1954"]
[BlackElo "2392"]
[PlyCount "118"]
[EventDate "2024.04.24"]
[EventType "swiss"]
[EventCountry "CHN"]
[TimeControl "5400+30"]

1. e4 {[%emt 0:00:08]} c5 {[%emt 0:00:58]} 2. Nf3 {[%emt 0:00:08]} Nc6 {[%emt 0:00:13]} 3. Be2 {[%emt 0:00:07]} g6 {[%emt 0:02:39]} 4. O-O {[%emt 0:00:06]} Bg7 {[%emt 0:00:13]} 5. c3 {[%emt 0:08:33]} Nf6 {[%emt 0:05:27]} 6. e5 {[%emt 0:01:19]} Nd5 {[%emt 0:00:26]} 7. d4 {[%emt 0:00:16]} cxd4 {[%emt 0:00:19]} 8. cxd4 {[%emt 0:00:06]} d6 {[%emt 0:03:05]} 9. exd6 {[%emt 0:15:26]} Qxd6 {[%emt 0:00:39]} 10. Nc3 {[%emt 0:00:34]} O-O {[%emt 0:01:22]} 11. Nxd5 {[%emt 0:35:32]} Qxd5 {[%emt 0:00:08]} 12. Be3 {[%emt 0:00:04]} Rd8 {[%emt 0:08:18]} 13. Qa4 {[%emt 0:01:01]} Be6 {[%emt 0:04:08]} 14. Rfd1 {[%emt 0:01:31]} Qd6 {[%emt 0:08:40]} 15. Rac1 {[%emt 0:07:24]} Bd5 {[%emt 0:04:12]} 16. Ne1 {[%emt 0:01:14]} Qe6 {[%emt 0:08:24]} 17. Bc4 {[%emt 0:03:38]} a6 {[%emt 0:00:26]} 18. Nf3 {[%emt 0:02:54]} Qf5 {[%emt 0:04:09]} 19. Bxd5 {[%emt 0:00:54]} Rxd5 {[%emt 0:00:06]} 20. Rc5 {[%emt 0:05:58]} Rad8 {[%emt 0:01:52]} 21. h3 {[%emt 0:05:50]} Rxc5 {[%emt 0:05:44]} 22. dxc5 {[%emt 0:00:05]} Rxd1+ {[%emt 0:00:04]} 23. Qxd1 {[%emt 0:00:04]} Bxb2 {[%emt 0:00:13]} 24. Qb3 {[%emt 0:00:37]} Qb1+ {[%emt 0:01:53]} 25. Kh2 {[%emt 0:00:03]} Be5+ {[%emt 0:00:07]} 26. Nxe5 {[%emt 0:00:06]} Qxb3 {[%emt 0:00:05]} 27. axb3 {[%emt 0:00:02]} Nxe5 {[%emt 0:00:05]} 28. f4 {[%emt 0:00:04]} Nc6 {[%emt 0:01:18]} 29. Kg3 {[%emt 0:00:12]} f6 {[%emt 0:01:26]} 30. Kf3 {[%emt 0:00:47]} Kf7 {[%emt 0:00:13]} 31. Ke4 {[%emt 0:00:19]} Ke6 {[%emt 0:00:08]} 32. g4 {[%emt 0:02:33]} f5+ {[%emt 0:00:04]} 33. Kd3 {[%emt 0:00:07]} Kd5 {[%emt 0:00:07]} 34. gxf5 {[%emt 0:01:59]} gxf5 {[%emt 0:00:04]} 35. Bf2 {[%emt 0:00:11]} e6 {[%emt 0:00:52]} 36. Bg1 {[%emt 0:01:56]} Nb4+ {[%emt 0:00:55]} 37. Kc3 {[%emt 0:00:11]} a5 {[%emt 0:00:31]} 38. Bf2 {[%emt 0:00:22]} Na6 {[%emt 0:00:39]} 39. c6 {[%emt 0:01:02]} Kxc6 {[%emt 0:00:04]} 40. Kd4 {[%emt 0:02:04]} Nc5 {[%emt 0:00:08]} 41. b4 {[%emt 0:03:09]} axb4 {[%emt 0:00:27]} 42. Be1 {[%emt 0:00:15]} b3 {[%emt 0:00:15]} 43. Bc3 {[%emt 0:00:22]} Na4 {[%emt 0:00:09]} 44. Ba1 {[%emt 0:00:59]} b2 {[%emt 0:00:10]} 45. Bxb2 {[%emt 0:00:03]} Nxb2 {[%emt 0:00:04]} 46. Ke5 {[%emt 0:00:07]} Nd3+ {[%emt 0:00:15]} 47. Kxe6 {[%emt 0:00:22]} Nxf4+ {[%emt 0:00:03]} 48. Kxf5 {[%emt 0:00:07]} Nxh3 {[%emt 0:00:03]} 49. Kg4 {[%emt 0:00:12]} b5 {[%emt 0:00:03]} 50. Kxh3 {[%emt 0:00:04]} b4 {[%emt 0:00:02]} 51. Kh4 {[%emt 0:00:06]} b3 {[%emt 0:00:02]} 52. Kh5 {[%emt 0:00:03]} b2 {[%emt 0:00:04]} 53. Kh6 {[%emt 0:00:07]} b1=Q {[%emt 0:00:03]} 54. Kg7 {[%emt 0:00:06]} h5 {[%emt 0:00:06]} 55. Kh6 {[%emt 0:00:07]} Qg1 {[%emt 0:00:06]} 56. Kxh5 {[%emt 0:00:04]} Kd5 {[%emt 0:00:02]} 57. Kh4 {[%emt 0:00:07]} Ke4 {[%emt 0:00:02]} 58. Kh3 {[%emt 0:00:05]} Kf4 {[%emt 0:00:02]} 59. Kh4 {[%emt 0:00:03]} Qh1# {[%emt 0:47:38]} 0-1

[Event "Chinese Championship-B Men 2024"]
[Site "Liaocheng"]
[Date "2024.04.24"]
[Round "3.4"]
[White "Jin, Hongtao"]
[Black "Jiang, Haochen"]
[Result "0-1"]
[WhiteElo "1903"]
[BlackElo "2381"]
[PlyCount "96"]
[EventDate "2024.04.24"]
[EventType "swiss"]
[EventCountry "CHN"]
[TimeControl "5400+30"]

1. d4 {[%emt 0:00:03]} Nf6 {[%emt 0:00:49]} 2. Nf3 {[%emt 0:00:11]} g6 {[%emt 0:02:29]} 3. g3 {[%emt 0:00:12]} Bg7 {[%emt 0:00:07]} 4. Bg2 {[%emt 0:00:06]} d5 {[%emt 0:00:13]} 5. O-O {[%emt 0:00:24]} O-O {[%emt 0:00:07]} 6. c4 {[%emt 0:00:04]} Nc6 {[%emt 0:00:09]} 7. b3 {[%emt 0:02:50]} dxc4 {[%emt 0:24:40]} 8. bxc4 {[%emt 0:00:07]} e5 {[%emt 0:01:29]} 9. Bb2 {[%emt 0:07:12]} e4 {[%emt 0:05:48]} 10. Ne5 {[%emt 0:00:44]} Nxe5 {[%emt 0:01:58]} 11. dxe5 {[%emt 0:00:11]} Ng4 {[%emt 0:00:40]} 12. Bxe4 {[%emt 0:06:43]} Nxe5 {[%emt 0:02:09]} 13. Nd2 {[%emt 0:01:12]} c6 {[%emt 0:01:54]} 14. Qc2 {[%emt 0:03:53]} Re8 {[%emt 0:05:32]} 15. Rfd1 {[%emt 0:04:23]} Qe7 {[%emt 0:03:17]} 16. Rab1 {[%emt 0:03:21]} Bg4 {[%emt 0:02:29]} 17. Bxe5 {[%emt 0:07:27]} Bxe5 {[%emt 0:06:11]} 18. Bf3 {[%emt 0:01:41]} Bf5 {[%emt 0:03:58]} 19. Be4 {[%emt 0:01:23]} Be6 {[%emt 0:03:03]} 20. Nb3 {[%emt 0:11:21]} a5 {[%emt 0:04:47]} 21. Nd4 {[%emt 0:02:36]} Bh3 {[%emt 0:02:06]} 22. Bg2 {[%emt 0:03:15]} Bg4 {[%emt 0:03:39]} 23. Bf3 {[%emt 0:01:29]} h5 {[%emt 0:00:30]} 24. e3 {[%emt 0:14:08]} Rad8 {[%emt 0:02:48]} 25. Bxg4 {[%emt 0:02:42]} hxg4 {[%emt 0:00:32]} 26. Qe4 {[%emt 0:07:35]} f5 {[%emt 0:03:19]} 27. Nxf5 {[%emt 0:01:06]} gxf5 {[%emt 0:01:10]} 28. Qxf5 {[%emt 0:00:03]} Qg7 {[%emt 0:05:27]} 29. Rxd8 {[%emt 0:00:04]} Rxd8 {[%emt 0:00:04]} 30. Rxb7 {[%emt 0:00:13]} Qxb7 {[%emt 0:00:27]} 31. Qg5+ {[%emt 0:00:05]} Kf7 {[%emt 0:00:21]} 32. Qxd8 {[%emt 0:00:21]} Qb1+ {[%emt 0:01:39]} 33. Kg2 {[%emt 0:00:04]} Qe4+ {[%emt 0:00:45]} 34. Kg1 {[%emt 0:00:30]} Qxc4 {[%emt 0:00:54]} 35. Qxa5 {[%emt 0:00:07]} Ke6 {[%emt 0:01:50]} 36. Qd8 {[%emt 0:01:01]} Qe4 {[%emt 0:01:10]} 37. Qg8+ {[%emt 0:05:17]} Kd6 {[%emt 0:01:00]} 38. a3 {[%emt 0:02:29]} Kc5 {[%emt 0:01:09]} 39. Qe6 {[%emt 0:00:29]} Kb5 {[%emt 0:00:55]} 40. Qb3+ {[%emt 0:01:00]} Ka5 {[%emt 0:00:15]} 41. Kf1 {[%emt 0:02:12]} c5 {[%emt 0:02:39]} 42. Ke1 {[%emt 0:02:32]} Qa4 {[%emt 0:01:59]} 43. Qd3 {[%emt 0:02:30]} Qb5 {[%emt 0:00:54]} 44. Qc2 {[%emt 0:03:48]} c4 {[%emt 0:01:14]} 45. Qe4 {[%emt 0:01:44]} Ka4 {[%emt 0:00:50]} 46. Qxg4 {[%emt 0:01:11]} Qb1+ {[%emt 0:00:11]} 47. Kd2 {[%emt 0:00:08]} Qd3+ {[%emt 0:00:34]} 48. Kc1 {[%emt 0:00:08]} Kxa3 {[%emt 0:00:09]} 0-1